bitfinex-derivatives/quotes_ETHF0:USTF0_20250320
["timestamp","ask_amount","ask_price","bid_price","bid_amount"]
[1742501843822,5.61351,1976.3,1976.2,4.92682]
[1742501844619,5.61351,1976.3,1976.2,5.60992]
[1742501844920,4.601,1976.3,1976.2,5.60992]
[1742501845625,5.61347,1976.3,1976.2,3.258]
[1742501846520,1.01252,1976.2,1976.1,1.4041]
[1742501846720,1.01263,1976.0,1975.9,4.26965]
[1742501846920,1.01263,1976.0,1975.9,5.67958]
[1742501847323,2.30173,1976.0,1975.9,3.257]
[1742501847923,2.30173,1976.0,1975.8,1.4099]
[1742501847924,1.01268,1975.9,1975.8,2.42263]
[1742501848123,2.30178,1975.9,1975.8,1.4099]
[1742501848526,2.30178,1975.9,1975.8,2.42263]
[1742501849527,2.30178,1975.9,1975.8,1.4099]
[1742501849725,1.01273,1975.8,1975.7,3.26460244]
[1742501850025,3.67463,1975.8,1975.7,5.63608244]
[1742501852631,3.67463,1975.8,1975.7,6.31345002]
[1742501852927,3.67463,1975.8,1975.7,5.63608244]
[1742501853136,2.34143,1975.8,1975.7,6.31343485]
[1742501854130,1.3287,1975.8,1975.7,6.31343485]
[1742501854338,1.01269,1975.9,1975.8,1.01268]
[1742501854539,1.01269,1975.9,1975.8,3.75193241]
[1742501855234,1.01269,1975.9,1975.8,3.7524865]
[1742501856036,1.3276,1976.0,1975.9,1.01268]
[1742501856037,2.34026,1976.0,1975.9,1.01268]
[1742501856234,2.34026,1976.0,1975.9,6.3520865]
[1742501856435,1.01261,1976.1,1976.0,1.01263]
[1742501856738,2.34021,1976.1,1976.0,3.7412365]
[1742501857039,1.3276,1976.1,1976.0,3.7412365]
[1742501857239,1.01258,1976.1,1976.0,3.7412365]
[1742501857532,1.01258,1976.2,1976.1,1.01255]
[1742501857737,1.67798,1976.2,1976.1,3.0949565]
[1742501857930,1.67798,1976.2,1976.1,6.3519565]
[1742501858635,1.67792,1976.2,1976.1,6.3519565]
[1742501858939,3.2078,1976.3,1976.2,1.01252]
[1742501859136,2.36625,1976.4,1976.3,1.01242]
[1742501859441,2.36625,1976.4,1976.3,3.0784265]
[1742501862130,1.3538,1976.4,1976.3,3.0784265]
[1742501862338,2.36622,1976.4,1976.3,3.0784265]
[1742501862841,2.36622,1976.4,1976.3,0.6779065]
[1742501863138,1.01247,1976.3,1976.2,1.01251]
[1742501863439,3.03087,1976.3,1976.2,1.69038904]
[1742501863637,3.68467,1976.3,1976.2,1.69038904]
[1742501863940,3.68467,1976.3,1976.2,3.08658904]
[1742501865834,1.3634,1976.3,1976.2,3.78048904]
[1742501866139,4.22021,1976.5,1976.4,1.01242]
[1742501866140,5.57741,1976.5,1976.4,1.01242]
[1742501867342,5.57741,1976.5,1976.4,2.30772]
[1742501873753,6.88691,1976.5,1976.4,2.30772]
[1742501876250,6.88691,1976.5,1976.4,2.98599474]
[1742501876550,4.5173,1976.5,1976.4,2.30772]
[1742501876849,3.2078,1976.5,1976.4,2.98598525]
[1742501877045,4.22017,1976.5,1976.4,2.98598525]
[1742501877349,4.22017,1976.5,1976.4,2.30772]
[1742501877553,4.22017,1976.5,1976.4,2.98607171]
[1742501877745,3.2078,1976.5,1976.4,2.98607171]
[1742501878049,2.36846,1976.6,1976.5,1.01237]
[1742501878250,2.36846,1976.6,1976.5,2.98487]
[1742501878649,2.36846,1976.6,1976.5,3.66319579]
[1742501878846,1.3561,1976.6,1976.5,3.66319579]
[1742501879347,2.36842,1976.6,1976.5,3.66319579]
[1742501880146,2.36842,1976.6,1976.5,2.99789579]
[1742501880351,2.36842,1976.6,1976.5,2.99812403]
[1742501880550,2.36842,1976.6,1976.5,2.99813718]
[1742501881847,2.36842,1976.6,1976.5,2.31957]
[1742501882050,2.36842,1976.6,1976.5,2.99825931]
[1742501883958,2.36842,1976.6,1976.5,2.99867965]
[1742501885947,2.36842,1976.6,1976.5,2.99913172]
[1742501888460,1.3561,1976.6,1976.5,2.99913172]
[1742501888660,1.01223,1976.9,1976.6,1.01232]
[1742501888952,2.36082,1976.8,1976.7,6.36353172]
[1742501889160,2.36082,1976.8,1976.7,4.94683172]
[1742501889358,1.3486,1976.8,1976.7,4.94683172]
[1742501889754,1.01218,1976.9,1976.8,1.01217]
[1742501889955,2.36078,1976.9,1976.8,1.69173172]
[1742501891854,1.3486,1976.9,1976.8,1.01217]
[1742501892164,2.36077,1976.9,1976.8,1.69068239]
[1742501892457,1.3486,1976.9,1976.8,1.69068239]
[1742501892762,2.36077,1976.9,1976.8,1.69068239]
[1742501892967,3.2078,1977.0,1976.9,1.01217]
[1742501893167,4.2199,1977.2,1977.1,1.01201]
[1742501893464,5.6109,1977.2,1977.1,1.01201]
[1742501894760,5.6109,1977.2,1976.9,7.12462]
[1742501894968,2.32511,1977.1,1977.0,1.01207]
[1742501895267,2.32511,1977.1,1977.0,1.68988216]
[1742501895462,2.32511,1977.1,1977.0,1.01207]
[1742501897167,2.32511,1977.1,1977.0,1.68955838]
[1742501897368,1.313,1977.1,1977.0,1.68955838]
[1742501897666,2.32506,1977.1,1977.0,1.68955838]
[1742501898062,2.32506,1977.1,1977.0,1.68939101]
[1742501898666,1.313,1977.1,1977.0,1.68939101]
[1742501898862,2.3585,1977.3,1977.2,1.01201]
[1742501899162,2.52949,1977.7,1977.3,1.01196]
[1742501899371,2.52949,1977.7,1977.4,1.01186]
[1742501899372,1.01191,1977.5,1977.4,1.01186]
[1742501900267,2.37421,1977.5,1977.4,1.01186]
[1742501901470,1.01196,1977.3,1977.2,4.95166]
[1742501901674,1.01196,1977.3,1977.2,4.26596]
[1742501901863,1.66796,1977.3,1977.2,4.26596]
[1742501902068,2.96496,1977.3,1977.2,4.26596]
[1742501906083,2.96496,1977.3,1977.2,3.254]
[1742501906473,2.96496,1977.3,1977.2,4.26601]
[1742501909383,2.96496,1977.3,1977.2,3.254]
[1742501909778,2.96496,1977.3,1977.2,4.5433]
[1742501909974,1.01206,1977.1,1977.0,1.3219]
[1742501910279,1.01217,1976.9,1976.8,0.00760244]
[1742501910481,1.01217,1976.9,1976.8,3.26160244]
[1742501910870,2.33227,1976.9,1976.8,5.57332244]
[1742501911483,2.33227,1976.9,1976.8,6.25022697]
[1742501911985,2.33227,1976.9,1976.8,6.25027397]
[1742501912883,2.33227,1976.9,1976.8,1.30710244]
[1742501914584,2.33227,1976.9,1976.8,2.31932244]
[1742501915480,2.33227,1976.9,1976.8,2.99692348]
[1742501916086,2.33227,1976.9,1976.8,2.99694554]
[1742501916582,2.33227,1976.9,1976.8,1.98472554]
[1742501917194,2.33227,1976.9,1976.8,2.99694554]
[1742501917997,2.33227,1976.9,1976.8,2.99762725]
[1742501919197,4.21995,1977.0,1976.9,1.01217]
[1742501919392,4.21995,1977.0,1976.9,3.03997481]
[1742501919601,4.21986,1977.2,1977.1,1.01206]
[1742501919798,1.01206,1977.2,1977.1,1.69062725]
[1742501920286,1.01206,1977.2,1977.1,3.04012725]
[1742501920698,2.43186,1977.2,1977.1,3.04012725]
[1742501924199,2.43186,1977.2,1977.1,3.03987463]
[1742501924401,2.3764,1977.3,1977.2,1.01201]
[1742501924601,3.6728,1977.3,1977.2,2.99662463]
[1742501925302,3.6728,1977.3,1977.2,1.98461463]
[1742501925501,1.2964,1977.3,1977.2,2.99663314]
[1742501925703,2.30836,1977.3,1977.2,2.99663314]
[1742501925900,1.01195,1977.4,1977.3,1.01191]
[1742501926102,1.01195,1977.4,1977.3,4.44323314]
[1742501926495,6.8692,1977.5,1977.4,1.01191]
[1742501926701,6.8692,1977.5,1977.4,2.35131]
[1742501927103,3.6614,1977.5,1977.4,2.35131]
[1742501927705,3.6614,1977.5,1977.4,3.0295241]
[1742501927706,2.3054,1977.5,1977.4,3.0295241]
[1742501928305,2.3054,1977.5,1977.4,2.35131]
[1742501929908,2.3054,1977.5,1977.4,3.02933706]
[1742501930513,2.3054,1977.5,1977.4,2.35131]
[1742501931199,2.3054,1977.5,1977.4,3.02928588]
[1742501932207,2.3054,1977.5,1977.4,2.35131]
[1742501932411,2.3054,1977.5,1977.4,3.02923973]
[1742501933912,1.0119,1977.5,1977.4,3.02923973]
[1742501934305,2.40125,1977.6,1977.5,1.01186]
[1742501934511,2.40125,1977.6,1977.5,3.03196557]
[1742501935203,3.2078,1977.7,1977.6,1.01181]
[1742501935408,3.2078,1977.7,1977.6,3.69621]
[1742501935706,2.29764,1977.8,1977.7,1.01176]
[1742501936010,2.29764,1977.8,1977.7,2.35416]
[1742501940210,2.29764,1977.8,1977.7,1.3424]
[1742501940720,1.01181,1977.6,1977.5,1.01181]
[1742501941016,1.01181,1977.6,1977.5,4.26481]
[1742501941206,1.01181,1977.6,1977.5,4.94182987]
[1742501941409,2.357,1977.7,1977.6,1.01181]
[1742501942115,2.357,1977.7,1977.6,2.41701]
[1742501944617,2.35696,1977.7,1977.6,2.41701]
[1742501945414,2.35696,1977.7,1977.6,3.09456237]
[1742501945814,2.35696,1977.7,1977.6,3.09458266]
[1742501947817,2.35696,1977.7,1977.6,3.09507618]
[1742501948416,1.3452,1977.7,1977.6,3.09507618]
[1742501950222,4.5563,1977.9,1977.8,1.0117]
[1742501950516,4.5563,1977.9,1977.8,1.68976618]
[1742501951620,5.56795,1977.9,1977.8,1.68976618]
[1742501951818,5.9072,1977.9,1977.8,2.98416618]
[1742501953121,6.91885,1977.9,1977.8,2.98416618]
[1742501953823,5.9072,1977.9,1977.8,2.98416618]
[1742501954323,2.6994,1977.9,1977.8,2.98416618]
[1742501955619,2.0036,1977.9,1977.8,2.98416618]
[1742501955920,1.3509,1977.9,1977.8,2.98416618]
[1742501956124,0.6581,1978.2,1978.1,1.01155]
[1742501956327,1.9542,1978.2,1978.1,3.10775514]
[1742501956527,1.9542,1978.2,1978.1,3.78495514]
[1742501956924,1.2961,1978.2,1978.1,7.03695514]
[1742501957126,1.2961,1978.2,1978.1,10.24475514]
[1742501957627,1.2961,1978.2,1978.1,6.35885]
[1742501957926,1.2961,1978.2,1978.1,7.03646755]
[1742501959333,1.2961,1978.2,1978.1,10.24426755]
[1742501959722,1.2961,1978.2,1978.1,10.24383749]
[1742501959922,1.2961,1978.2,1978.1,7.03603749]
[1742501961729,1.2961,1978.2,1978.1,7.03579431]
[1742501963030,1.66948,1978.5,1978.4,1.0114]
[1742501963230,2.33008,1978.5,1978.4,1.0114]
[1742501964324,3.68128,1978.5,1978.4,1.0114]
[1742501970336,3.68125,1978.5,1978.4,1.0114]
[1742501970736,3.68125,1978.5,1978.4,2.2969]
[1742501973935,1.01145,1978.4,1978.1,0.6772]
[1742501974142,1.01154,1978.2,1978.1,4.2615]
[1742501974343,1.01154,1978.2,1978.1,6.33114669]
[1742501974537,3.72064,1978.2,1978.1,3.08114669]
[1742501976636,3.72064,1978.2,1978.1,1.68804669]
[1742501977546,3.72064,1978.2,1978.1,1.0115]
[1742501978342,3.72064,1978.2,1978.1,1.6887867]
[1742501979354,2.7091,1978.2,1978.1,1.6887867]
[1742501979645,3.7206,1978.2,1978.1,1.6887867]
[1742501979847,2.7091,1978.2,1978.1,1.6887867]
[1742501980345,2.7091,1978.2,1978.1,3.0755867]
[1742501980744,3.7206,1978.2,1978.1,3.0755867]
[1742501982048,2.7091,1978.2,1978.1,3.0755867]
[1742501982248,1.01147,1978.3,1978.2,1.0115]
[1742501982449,2.31264,1978.4,1978.3,1.0114]
[1742501982645,2.31264,1978.4,1978.3,3.0841867]
[1742501987044,1.3012,1978.4,1978.3,3.0841867]
[1742501987646,3.2078,1978.5,1978.4,1.0114]
[1742501987846,3.2078,1978.5,1978.4,6.3550867]
[1742501988748,4.5631,1978.7,1978.6,1.0113]
[1742501989050,5.57434,1978.7,1978.6,1.6885867]
[1742501989546,5.57434,1978.7,1978.6,2.9751867]
[1742501994451,3.2078,1978.7,1978.6,6.2251867]
[1742501994654,2.36441,1978.8,1978.7,1.01124]
[1742501994856,2.36441,1978.8,1978.7,2.9941267]
[1742501995049,3.2078,1978.9,1978.8,1.01119]
[1742501995248,1.3207,1978.9,1978.8,3.32153568]
[1742501995448,1.3207,1978.9,1978.8,4.33272568]
[1742501995647,2.33184,1978.9,1978.8,4.33272568]
[1742501996353,2.33184,1978.9,1978.8,1.3056]
[1742501996554,2.33184,1978.9,1978.6,4.26126]
[1742501996555,1.01124,1978.7,1978.6,4.26126]
[1742501996757,1.01124,1978.7,1978.6,6.24420817]
[1742501996962,1.01124,1978.7,1978.6,2.31686]
[1742501997157,6.19164,1978.7,1978.6,1.3056]
[1742501997459,6.19164,1978.7,1978.6,2.3169]
[1742501999151,1.0114,1978.5,1978.1,5.73663]
[1742501999347,1.01146,1978.4,1978.3,2.378]
[1742501999553,3.01016,1978.4,1978.3,3.05558728]
[1742502000058,3.01016,1978.4,1978.3,3.05569984]
[1742502000655,3.69526,1978.4,1978.3,3.05569984]
[1742502001159,3.69526,1978.4,1978.3,3.05554093]
[1742502001959,3.69526,1978.4,1978.3,2.04414093]
[1742502002161,3.69526,1978.4,1978.3,1.3666]
[1742502003261,3.69526,1978.4,1978.3,2.37805]
[1742502003449,1.01145,1978.3,1978.2,1.01146]
[1742502003655,2.36255,1978.3,1978.2,2.97405574]
[1742502004060,2.36255,1978.3,1978.2,1.96259574]
[1742502004358,1.0115,1978.2,1978.1,1.01153]
[1742502004658,2.3616,1978.2,1978.1,1.68921789]
[1742502004963,2.3616,1978.2,1978.1,2.99901789]
[1742502007365,2.3616,1978.2,1978.0,3.94768284]
[1742502007366,1.01155,1978.1,1978.0,0.00758284]
[1742502007664,3.62785,1978.1,1978.0,0.00758284]
[1742502008058,1.0117,1977.8,1977.7,1.01171]
[1742502008265,1.0117,1977.8,1977.7,2.34860865]
[1742502009367,1.0117,1977.8,1977.7,2.34857686]
[1742502009565,1.0117,1977.8,1977.7,3.74487686]
[1742502010067,2.29299,1977.9,1977.8,1.0117]
[1742502010267,2.29299,1977.9,1977.8,2.4259]
[1742502010566,2.29299,1977.9,1977.8,3.10361995]
[1742502010867,2.29299,1977.9,1977.8,3.103661]
[1742502011169,2.29299,1977.9,1977.8,2.4259]
[1742502011866,1.01175,1977.8,1977.7,1.0117]
[1742502012057,4.21942,1978.0,1977.7,1.35384162]
[1742502012254,1.01905751,1978.2,1977.8,3.85657964]
[1742502012463,1.01905751,1978.2,1978.1,1.01155]
[1742502012865,4.22685751,1978.2,1978.1,1.01155]
[1742502013168,1.01905751,1978.2,1978.1,1.01155]
[1742502013466,2.34585751,1978.2,1978.1,2.36785]
[1742502014061,5.55365751,1978.2,1978.1,2.36785]
[1742502014262,4.54211751,1978.2,1977.6,5.74479284]
[1742502014568,1.01169,1977.9,1977.8,1.01165]
[1742502014761,1.01169,1977.9,1977.8,3.05885]
[1742502015061,2.33849,1977.9,1977.8,3.05885]
[1742502015868,2.33849,1977.9,1977.8,3.73615411]
[1742502016069,1.01169,1977.9,1977.8,3.73615411]
[1742502017066,2.29414,1978.0,1977.9,1.01165]
[1742502017270,3.6554,1978.1,1978.0,1.0116]
[1742502017768,3.6554,1978.1,1978.0,2.427]
[1742502019866,2.9494,1978.1,1978.0,2.427]
[1742502020368,2.2941,1978.1,1978.0,2.427]
[1742502020966,2.29405,1978.1,1978.0,3.10412858]
[1742502021167,1.2825,1978.1,1978.0,3.10422349]
[1742502021570,2.29405,1978.1,1978.0,3.10422349]
[1742502021970,2.29405,1978.1,1978.0,2.427]
[1742502022174,1.2825,1978.1,1978.0,3.1042144]
[1742502022470,1.01905751,1978.2,1978.1,1.01155]
[1742502022668,2.38635751,1978.2,1978.1,3.11415]
[1742502023171,2.38635751,1978.2,1978.1,3.79147456]
[1742502023360,2.38635751,1978.2,1978.1,2.40965]
[1742502025661,0.00751751,1978.2,1978.1,2.40965]
[1742502025974,1.3405,1978.5,1978.4,1.0114]
[1742502026173,2.35185,1978.5,1978.4,1.68920088]
[1742502026359,3.05405,1978.5,1978.4,1.68920884]
[1742502026562,3.05405,1978.5,1978.4,3.00650884]
[1742502027570,3.05405,1978.5,1978.4,3.00656974]
[1742502029971,3.72935,1978.5,1978.4,3.00656974]
[1742502031470,3.72935,1978.5,1978.4,3.00684747]
[1742502034270,3.72935,1978.5,1978.4,1.3173]
[1742502034473,1.01145,1978.4,1978.3,1.01145]
[1742502034675,2.43055,1978.4,1978.3,1.01145]
[1742502035479,2.43055,1978.4,1978.3,2.37295]
[1742502036273,2.43055,1978.4,1978.1,0.6758]
[1742502036475,2.4306,1978.3,1978.2,0.67828237]
[1742502036670,2.4306,1978.3,1977.9,1.01161]
[1742502036671,1.01165,1978.0,1977.9,1.01161]
[1742502036873,1.01165,1978.0,1977.9,1.69009287]
[1742502037273,1.01165,1978.0,1977.9,3.05159287]
[1742502037476,2.42885,1978.0,1977.9,3.05159287]
[1742502039582,2.42885,1978.0,1977.9,3.05183534]
[1742502041684,1.4172,1978.0,1977.9,3.05183534]
[1742502041981,2.4288,1978.0,1977.9,3.05183534]
[1742502043390,2.4288,1978.0,1977.9,3.05193618]
[1742502045590,2.4288,1978.0,1977.9,3.05205817]
[1742502047586,2.4288,1978.0,1977.9,3.05206356]
[1742502049588,2.4288,1978.0,1977.9,3.05200757]
[1742502052400,1.01165,1977.9,1977.8,1.01167]
[1742502052601,3.01815,1977.9,1977.8,3.10946133]
[1742502054103,3.01815,1977.9,1977.8,2.43057]
[1742502054297,3.01815,1977.9,1977.8,3.10917083]
[1742502054495,1.01161,1978.0,1977.9,1.0116]
[1742502054791,1.3343,1978.0,1977.9,3.75630083]
[1742502055096,1.01155,1978.2,1978.1,1.0115]
[1742502055398,1.3343,1978.2,1978.1,1.68972744]
[1742502055602,1.01142,1978.4,1978.2,2.52876]
[1742502055899,1.3046,1978.5,1978.4,1.0114]
[1742502056099,1.3046,1978.5,1978.4,1.6892994]
[1742502056288,2.31595,1978.5,1978.4,3.7292994]
[1742502057801,2.31595,1978.5,1978.4,3.72928552]
[1742502058489,1.3046,1978.5,1978.4,3.72928552]
[1742502058994,2.31595,1978.5,1978.4,3.72928552]
[1742502061602,2.31595,1978.5,1978.4,3.0514]
[1742502062402,2.31595,1978.5,1978.4,3.72973507]
[1742502063394,1.01135,1978.5,1978.4,3.72973507]
[1742502063900,3.61584,1978.6,1978.5,1.01135]
[1742502064095,3.61584,1978.6,1978.5,3.02165]
[1742502064697,1.01126,1978.8,1978.5,3.69975675]
[1742502064895,2.35214,1979.0,1978.7,2.52802]
[1742502065199,1.341,1979.0,1978.8,4.63119]
[1742502065404,1.9892,1979.0,1978.9,2.0458]
[1742502065809,1.9892,1979.0,1978.9,3.05694]
[1742502066103,3.00029,1979.0,1978.9,3.05694]
[1742502066304,3.00029,1979.0,1978.9,2.41644]
[1742502068706,1.9892,1979.0,1978.9,2.41644]
[1742502068900,1.2946,1979.0,1978.9,2.41644]
[1742502069501,1.2946,1979.0,1978.9,3.09228758]
[1742502069700,1.2946,1979.0,1978.9,3.09229094]
[1742502069897,1.2946,1979.0,1978.9,2.41644]
[1742502071604,4.91694,1979.2,1979.1,1.01104]
[1742502072001,1.66894,1979.2,1979.1,1.01104]
[1742502073111,1.9482,1979.2,1979.1,1.01104]
[1742502073313,1.9482,1979.2,1979.1,1.71974]
[1742502073804,2.95919,1979.2,1979.1,1.71974]
[1742502074103,1.9482,1979.2,1979.1,1.71974]
[1742502074610,2.95919,1979.2,1979.1,1.71974]
[1742502074812,1.9482,1979.2,1979.1,1.71974]
[1742502075612,1.01058,1980.1,1980.0,1.01053]
[1742502075816,2.52669,1979.9,1979.5,6.4558]
[1742502076106,1.01087,1979.5,1979.4,1.01083]
[1742502076915,2.31987,1979.5,1979.4,1.01083]
[1742502079510,3.00527,1979.5,1979.4,1.01083]
[1742502083010,1.01089,1979.4,1979.3,2.40837284]
[1742502083213,3.03469,1979.4,1979.3,0.00758284]
[1742502083412,6.24249,1979.4,1979.3,0.00758284]
[1742502083711,9.48949,1979.4,1979.3,0.00758284]
[1742502085420,9.48949,1979.4,1979.3,1.01852284]
[1742502085609,9.48949,1979.4,1979.3,0.00758284]
[1742502086923,9.48949,1979.4,1979.3,1.01852284]
[1742502087125,9.48949,1979.4,1979.3,0.00758284]
[1742502087319,9.48949,1979.4,1979.3,1.01852284]
[1742502087620,9.48949,1979.4,1979.3,0.00758284]
[1742502088119,9.48949,1979.4,1979.3,1.01852284]
[1742502088320,9.48949,1979.4,1979.3,0.00758284]
[1742502088919,9.48949,1979.4,1979.3,1.01852284]
[1742502091624,5.2316,1979.4,1979.3,1.01852284]
[1742502091924,1.376,1979.4,1979.3,3.08153795]
[1742502092120,1.376,1979.4,1979.3,3.74023795]
[1742502094322,1.376,1979.4,1979.3,3.74079922]
[1742502096625,4.91973,1979.6,1979.5,1.01084]
[1742502096925,4.91973,1979.6,1979.5,1.68881638]
[1742502097417,4.91973,1979.6,1979.5,2.33751638]
[1742502097621,1.67269,1979.6,1979.5,2.33751638]
[1742502098016,2.95239,1979.6,1979.5,2.33751638]
[1742502100128,2.95239,1979.6,1979.5,2.33812925]
[1742502101127,2.95239,1979.6,1979.5,3.67292925]
[1742502102127,2.95239,1979.6,1979.5,3.6732013]
[1742502104826,3.2078,1979.8,1979.6,1.01079]
[1742502105124,2.33745,1979.9,1979.8,1.01068]
[1742502105321,1.3268,1979.9,1979.8,1.01068]
[1742502105627,2.33743,1979.9,1979.8,3.72392543]
[1742502105825,3.67843,1979.9,1979.8,3.72392543]
[1742502106422,3.67843,1979.9,1979.8,3.72373983]
[1742502106625,3.67843,1979.9,1979.8,3.72374179]
[1742502107325,3.67843,1979.9,1979.8,3.04528]
[1742502114632,1.01061,1980.0,1979.9,1.01063]
[1742502114830,2.29341,1980.0,1979.9,3.04633]
[1742502121636,2.29341,1980.0,1979.9,1.3654]
[1742502126235,5.50121,1980.0,1979.9,1.3654]
[1742502127931,1.01073,1979.7,1979.6,0.7003]
[1742502128130,1.01073,1979.7,1979.6,2.38988572]
[1742502128431,1.01072,1979.8,1979.7,1.01073]
[1742502128637,1.01072,1979.8,1979.7,1.68952572]
[1742502128836,1.01068,1979.9,1979.8,1.01065]
[1742502129137,1.01068,1979.9,1979.8,2.35784572]
[1742502129338,2.31678,1979.9,1979.8,2.35784572]
[1742502129835,1.01068,1979.9,1979.8,2.35784572]
[1742502130232,1.3061,1980.0,1979.9,1.01063]
[1742502130439,1.3061,1980.0,1979.9,2.35872572]
[1742502130636,1.3061,1980.0,1979.9,1.67993]
[1742502130836,2.31673,1980.0,1979.9,3.05243]
[1742502132043,2.31673,1980.0,1979.9,3.73149945]
[1742502133042,1.01055,1980.1,1980.0,1.01058]
[1742502133236,1.01055,1980.1,1980.0,3.07064945]
[1742502133441,2.96862,1980.2,1980.1,1.01053]
[1742502133639,2.96862,1980.2,1980.1,3.07059945]
[1742502134240,2.96862,1980.2,1980.1,3.07092585]
[1742502134747,2.96862,1980.2,1980.1,2.06039585]
[1742502135337,1.9581,1980.2,1980.1,2.06039585]
[1742502135645,1.01035,1980.5,1980.4,1.01036]
[1742502135837,1.3378,1980.4,1980.3,1.0104]
[1742502136037,1.3378,1980.4,1980.3,3.0341833]
[1742502136232,3.2078,1980.6,1980.3,2.0237833]
[1742502136440,1.3378,1980.5,1980.4,3.0341633]
[1742502137243,2.34813,1980.5,1980.4,2.0237833]
[1742502137443,3.02773,1980.5,1980.4,1.345]
[1742502137847,3.02773,1980.5,1980.4,2.35538]
[1742502138351,1.3378,1980.5,1980.4,2.35538]
[1742502138552,1.3378,1980.5,1980.4,3.03285084]
[1742502139247,1.3378,1980.5,1980.4,2.35538]
[1742502140241,1.3378,1980.5,1980.4,3.03255211]
[1742502140445,0.39882304,1981.4,1980.4,4.52217211]
[1742502140638,0.39882304,1981.4,1980.3,3.21538284]
[1742502140639,1.01001,1981.2,1980.8,3.2078]
[1742502140842,1.3518,1981.1,1981.0,1.01007]
[1742502141043,1.3518,1981.1,1980.9,1.0101]
[1742502141243,0.6811,1981.0,1980.9,1.01012]
[1742502141952,1.3518,1981.1,1980.9,1.01008]
[1742502142354,2.36182,1981.1,1981.0,1.2986]
[1742502142646,2.36182,1981.1,1980.8,4.5523]
[1742502142647,1.3518,1981.1,1980.8,0.6502]
[1742502142849,3.2078,1980.9,1980.4,3.2078]
[1742502143057,5.3524,1980.8,1980.4,4.5064]
[1742502143259,2.36574,1980.7,1980.5,2.30892]
[1742502143557,1.01024,1980.7,1980.6,1.2986]
[1742502144250,4.6532,1980.8,1980.6,1.2986]
[1742502144457,1.01012,1980.9,1980.6,5.51664]
[1742502144652,1.01012,1980.9,1980.7,0.6484]
[1742502144952,1.3266,1981.0,1980.7,1.4038]
[1742502144953,1.01017,1980.8,1980.7,1.4038]
[1742502145150,1.01022,1980.7,1980.6,1.4038]
[1742502145753,3.345,1980.8,1980.3,3.21538284]
[1742502145953,1.01033,1980.5,1980.4,1.4038]
[1742502146459,4.7226,1980.6,1980.4,2.41416]
[1742502146751,4.7226,1980.6,1980.5,1.01033]
[1742502146946,3.352,1980.6,1980.5,2.41413]
[1742502147148,3.353,1980.9,1980.7,1.01022]
[1742502147347,4.5784,1981.1,1980.8,2.8027]
[1742502147545,5.58846,1981.1,1980.9,1.4156]
[1742502148053,5.58846,1981.1,1980.9,2.42571]
[1742502148454,5.58846,1981.1,1981.0,1.4156]
[1742502149047,1.3706,1981.1,1981.0,1.4156]
[1742502149452,1.3706,1981.1,1981.0,2.42567]
[1742502149855,1.3706,1981.1,1981.0,1.4156]
[1742502150449,0.6913,1981.1,1981.0,1.4156]
[1742502150656,0.6913,1981.1,1981.0,2.42567]
[1742502151551,1.01002,1981.1,1981.0,1.4156]
[1742502151952,6.58552,1981.3,1980.9,3.2078]
[1742502152256,1.66717,1981.0,1980.9,3.2078]
[1742502152955,1.01017,1980.8,1980.7,3.2078]
[1742502153148,2.52545,1980.8,1980.3,0.71528284]
[1742502153353,1.01038,1980.4,1980.3,0.71528284]
[1742502153651,1.01038,1980.4,1980.3,1.30658284]
[1742502153950,1.01038,1980.4,1980.3,0.00758284]
[1742502154752,4.36437,1980.5,1980.3,1.01800284]
[1742502154956,4.36435,1980.5,1980.3,1.01798284]
[1742502155260,4.36435,1980.5,1980.4,1.299]
[1742502155459,1.01038,1980.4,1980.3,0.00758284]
[1742502155763,4.36436,1980.5,1980.4,1.01038]
[1742502156354,4.36436,1980.5,1980.3,2.31697284]
[1742502156355,1.01038,1980.4,1980.3,2.31697284]
[1742502156559,4.36438,1980.5,1980.3,2.31697284]
[1742502156756,4.36438,1980.5,1980.4,1.418]
[1742502157356,1.01038,1980.5,1980.4,2.42838]
[1742502157661,1.01038,1980.5,1980.4,1.418]
[1742502158165,2.40938,1980.5,1980.4,1.418]
[1742502159061,2.40938,1980.5,1980.4,2.42838]
[1742502159255,2.40938,1980.5,1980.4,1.418]
[1742502160456,1.399,1980.5,1980.4,2.42838]
[1742502160665,2.40933,1980.5,1980.4,2.42838]
[1742502160859,2.40933,1980.5,1980.4,1.418]
[1742502161056,1.399,1980.5,1980.4,2.42838]
[1742502161461,1.01022,1980.7,1980.4,4.6258]
[1742502161660,1.3308,1980.7,1980.6,1.01027]
[1742502162168,1.3308,1980.7,1980.6,2.31377]
[1742502162567,0.6909,1980.9,1980.6,4.5113]
[1742502162762,2.0756,1980.9,1980.8,1.01017]
[1742502162967,1.3847,1980.9,1980.8,4.21797]
[1742502163563,0.6973,1981.1,1981.0,1.01007]
[1742502163769,2.082,1981.1,1981.0,1.01007]
[1742502164073,1.3847,1981.1,1981.0,4.21787]
[1742502164372,1.69357,1981.2,1981.1,1.01002]
[1742502164665,1.00988,1981.4,1981.3,1.00992]
[1742502164872,2.39458,1981.4,1981.3,1.00992]
[1742502165270,1.00992,1981.3,1981.2,2.33644]
[1742502165472,1.2807,1981.3,1981.2,2.33644]
[1742502165865,3.2078,1981.8,1981.2,7.8873]
[1742502166071,1.00968,1981.8,1981.6,1.00974]
[1742502166274,2.29043,1981.7,1981.5,1.00979]
[1742502166570,1.2807,1981.7,1981.3,0.00758284]
[1742502166779,1.00983,1981.5,1981.4,1.00985]
[1742502166973,1.00983,1981.5,1981.3,0.00758284]
[1742502167166,1.2807,1981.4,1981.3,1.01746284]
[1742502169574,4.21739,1982.0,1981.9,1.00958]
[1742502169782,1.00963,1981.9,1981.7,1.00967]
[1742502169978,2.36823,1981.9,1981.8,1.00966]